fUSD/lending_fUSD_20260128
["ID","MTS","AMOUNT","RATE_DAILY","PERIOD"]
[403888641,1769632239608,-310.61,0.000198,2]
[403888643,1769632239618,-1000.0,0.00020262,2]
[403888645,1769632239627,-150.00413485,0.00020504,10]
[403888647,1769632239636,-176.54,0.0002053,2]
[403888649,1769632239646,-1148.0,0.00020896,2]
[403888651,1769632239655,-78242.82767705,0.00021,2]
[403888653,1769632239664,-172.74,0.00021027,2]
[403888655,1769632239673,-158.90099035,0.00021054,2]
[403888656,1769632239682,-823.0,0.00021373,2]
[403888658,1769632239691,-2324.318,0.00021521,2]
[403888660,1769632239700,-150.04,0.00021521,2]
[403888662,1769632239710,-2000.0,0.00021702,7]
[403888664,1769632239718,-2000.0,0.00021702,7]
[403888666,1769632239728,-2000.0,0.00021702,7]
[403888668,1769632239736,-2000.0,0.00021702,7]
[403888670,1769632239745,-2000.0,0.00021702,7]
[403888672,1769632239754,-1000.0,0.00021702,7]
[403888673,1769632239763,-717.24498371,0.00021702,7]
[403888676,1769632239776,-847.97755342,0.00021702,7]
[403888678,1769632239789,-434.77746287,0.00021702,7]
[403888680,1769632239798,-1000.0,0.00021702,7]
[403888682,1769632239807,-150.00413485,0.00021741,14]
[403888684,1769632239816,-500.0,0.00021973,2]
[403888685,1769632239826,-613.50417892,0.00021973,2]
[403888687,1769632239836,-150.2937682,0.00021973,2]
[403888689,1769632239845,-597.6127614,0.00021973,2]
[403888691,1769632239855,-500.0,0.00021973,2]
[403888693,1769632239865,-500.0,0.00021973,2]
[403888695,1769632239875,-275.97262437,0.00021973,2]
[403888697,1769632239884,-499.999999,0.00021973,2]
[403888699,1769632239894,-500.0,0.00021973,2]
[403888701,1769632239903,-500.0,0.00021973,2]
[403888703,1769632239912,-500.0,0.00021973,2]
[403888705,1769632239921,-500.0,0.00021973,2]
[403888707,1769632239930,-500.0,0.00021973,2]
[403888708,1769632239939,-172.26073307,0.00021973,2]
[403888710,1769632239948,-500.0,0.00021973,2]
[403888712,1769632239958,-500.0,0.00021973,2]
[403888714,1769632239967,-500.0,0.00021973,2]
[403888716,1769632239976,-500.0,0.00021973,2]
[403888718,1769632239986,-182.21176158,0.00021973,2]
[403888720,1769632239995,-500.0,0.00021973,2]
[403888722,1769632240005,-500.0,0.00021973,2]
[403888724,1769632240014,-160.09424111,0.00021973,2]
[403888725,1769632240022,-500.0,0.00021973,2]
[403888726,1769632240031,-463.18396516,0.00021973,2]
[403888727,1769632240040,-500.0,0.00021973,2]
[403888728,1769632240050,-500.0,0.00021973,2]
[403888729,1769632240060,-500.0,0.00021973,2]
[403888730,1769632240070,-500.0,0.00021973,2]
[403888731,1769632240078,-500.0,0.00021973,2]
[403888732,1769632240087,-500.0,0.00021973,2]
[403888733,1769632240096,-500.0,0.00021973,2]
[403888734,1769632240105,-161.14558947,0.00021973,2]
[403888735,1769632240114,-500.0,0.00021973,2]
[403888736,1769632240123,-161.34978471,0.00021973,2]
[403888737,1769632240131,-548.32332639,0.00021973,2]
[403888738,1769632240140,-500.0,0.00021973,2]
[403888739,1769632240149,-500.0,0.00021973,2]
[403888740,1769632240158,-454.62309315,0.00021973,2]
[403888741,1769632240169,-500.0,0.00021973,2]
[403888742,1769632240178,-487.62,0.00022152,2]
[403888743,1769632240188,-250.0,0.00022161,2]
[403888744,1769632240197,-172.74,0.00022195,2]
[403888745,1769632240206,-160.57192077,0.00022321,2]
[403888747,1769632240218,-500.0,0.0002242,2]
[403888749,1769632240227,-500.0,0.0002242,2]
[403888751,1769632240236,-568.58467958,0.0002242,2]
[403888753,1769632240245,-6901.18897108,0.00022421,2]
[403888755,1769632240256,-706.55591932,0.00022421,2]
[403888758,1769632240270,-500.0,0.00022421,2]
[403888771,1769632240378,-420.86114321,0.00022421,2]
[403888773,1769632240391,-3391.7295467,0.00022421,2]
[403888775,1769632240402,-1191.98,0.00022421,2]
[403888777,1769632240413,-1736.10099612,0.00022421,2]
[403888779,1769632240423,-969.03,0.00022421,2]
[403888782,1769632240434,-473.93335833,0.00022421,2]
[403888784,1769632240445,-695.89911154,0.00022421,2]
[403888790,1769632240491,-525435.45013544,0.00022421,2]
[403888792,1769632240502,-2911.12206947,0.00022421,2]
[403888794,1769632240512,-8729.85355906,0.00022421,2]
[403888796,1769632240523,-922.18333418,0.00022421,2]
[403888817,1769632240708,-425.63,0.00022421,2]
[403888825,1769632240764,-500.0,0.00022421,2]
[403888827,1769632240775,-1405.08006027,0.00022421,2]
[403889019,1769632243565,-106.94227467,0.00022421,2]
[403889020,1769632243581,-1797.61271401,0.00022421,2]
[403889021,1769632243673,-512.6900035,0.00022421,2]
[403889022,1769632243685,-1368.22960027,0.00022421,2]
[403889023,1769632243729,-2584.11823244,0.00022421,2]
[403889024,1769632243740,-393.39206397,0.00022421,2]
[403889037,1769632246376,-212.08876731,0.000179,2]
[403889038,1769632246387,-18516.63123269,0.00022421,2]
[403889039,1769632246434,-1840.34,0.00022421,2]
[403889066,1769632884441,3246.34406635,0.00013786,2]
[403889067,1769632884601,444.86620083,0.00013786,2]
[403889068,1769632884620,2561.65817763,0.00013786,2]
[403889080,1769633369114,-195.0,0.00016769,2]
[403889081,1769633369133,-250.0,0.00017,2]
[403889082,1769633369154,-294.0,0.00017,2]
[403889083,1769633369175,-150.00518937,0.00017167,2]
[403889084,1769633369196,-195.0,0.00017209,2]
[403889085,1769633369217,-4219.91945063,0.0001734,2]
[403889093,1769633431410,-151.0,0.00016351,2]
[403889095,1769633431420,-151.0,0.00016351,2]
[403889098,1769633431429,-151.0,0.00016377,2]
[403889099,1769633431438,-151.0,0.00016392,2]
[403889101,1769633431448,-41.79236201,0.0001734,2]
[403889104,1769633431467,-741.76847225,0.0001734,2]
[403889107,1769633431478,-2998.73971511,0.0001734,2]
[403889109,1769633431486,-500.0,0.00017999,2]
[403889111,1769633431495,-500.0,0.00017999,2]
[403889113,1769633431504,-500.0,0.00017999,2]
[403889114,1769633431513,-385.18354163,0.00017999,2]
[403889116,1769633431522,-514.0,0.00018,2]
[403889119,1769633431531,-200.0,0.00018082,2]
[403889121,1769633431540,-195.0,0.00018191,2]
[403889122,1769633431549,-250.0,0.00018445,2]
[403889123,1769633431558,-500.0,0.00018689,2]
[403889124,1769633431567,-11.28438125,0.00018689,2]
[403889125,1769633431579,-285.26095391,0.00018689,2]
[403889126,1769633431590,-203.45466484,0.00018689,2]
[403889127,1769633431599,-188.42533516,0.00018689,2]
[403889128,1769633431614,-311.57466484,0.00018689,2]
[403889129,1769633431623,-500.0,0.00018689,2]
[403889130,1769633431632,-200.0,0.00018689,2]
[403889131,1769633431641,-200.0,0.00018689,2]
[403889133,1769633431650,-500.0,0.00018689,2]
[403889135,1769633431664,-9999.99,0.000187,2]
[403889137,1769633431674,-369.0,0.0001889,2]
[403889138,1769633431683,-294.12341109,0.00019095,2]
[403889139,1769633431691,-200.0,0.00019237,2]
[403889140,1769633431702,-838.71,0.0001939,2]
[403889141,1769633431931,-4698.1,0.00019547,2]
[403889142,1769633431942,-150.0,0.00019547,2]
[403889143,1769633431951,-224.32,0.000196,2]
[403889144,1769633431960,-200.0,0.0001963,2]
[403889145,1769633431969,-150.0,0.00019647,2]
[403889146,1769633431979,-150.0,0.00019747,2]
[403889147,1769633431990,-200.0,0.00019809,2]
[403889148,1769633432000,-3196.7,0.00020412,2]
[403889149,1769633432009,-1084.71,0.00020745,2]
[403889150,1769633432019,-500.0,0.00020836,2]
[403889151,1769633432029,-2324.318,0.00021092,2]
[403889152,1769633432038,-150.04,0.00021092,2]
[403889153,1769633432047,-158.90099035,0.00021181,2]
[403889154,1769633432057,-1852.42,0.00021199,2]
[403889155,1769633432067,-1500.0,0.000214,2]
[403889156,1769633432077,-33266.4327,0.00021773,2]
[403889157,1769633432087,-1000.0,0.00021773,2]
[403889158,1769633432097,-9356.5143,0.00021773,2]
[403889159,1769633432106,-2500.0,0.00021773,2]
[403889160,1769633432115,-1084.71,0.00021782,2]
[403889161,1769633432124,-838.71,0.00021814,2]
[403889162,1769633432134,-3163.24623306,0.00021818,2]
[403889163,1769633432143,-3788.19538951,0.00021818,2]
[403889164,1769633432153,-500.0,0.0002187,2]
[403889165,1769633432164,-151.0,0.0002187,2]
[403889166,1769633432173,-500.0,0.00021871,2]
[403889167,1769633432182,-500.0,0.00021871,2]
[403889168,1769633432191,-500.0,0.00021871,2]
[403889169,1769633432200,-467.82048171,0.00021871,2]
[403889170,1769633432209,-500.0,0.00021871,2]
[403889171,1769633432218,-500.0,0.00021871,2]
[403889172,1769633432226,-160.74498373,0.00021871,2]
[403889173,1769633432235,-500.0,0.00021871,2]
[403889174,1769633432245,-295.63833152,0.00021871,2]
[403889175,1769633432254,-395.36,0.00021871,2]
[403889176,1769633432264,-189.711018,0.00021872,2]
[403889177,1769633432273,-500.0,0.00021872,2]
[403889178,1769633432283,-214.34774164,0.00021872,2]
[403889179,1769633432291,-500.0,0.00021872,2]
[403889180,1769633432301,-500.0,0.00021872,2]
[403889181,1769633432311,-500.0,0.00021872,2]
[403889182,1769633432320,-500.0,0.00021872,2]
[403889183,1769633432329,-500.0,0.00021872,2]
[403889184,1769633432338,-500.0,0.00021872,2]
[403889185,1769633432347,-500.0,0.00021872,2]
[403889186,1769633432356,-500.0,0.00021872,2]
[403889187,1769633432366,-500.0,0.00021872,2]
[403889188,1769633432376,-150.0,0.00021872,2]
[403889189,1769633432386,-500.0,0.00021872,2]
[403889190,1769633432395,-11272.24867108,0.00021873,2]
[403889193,1769633437533,-506.97882,0.00018,2]
[403889194,1769633437543,-158.90099035,0.00021181,2]
[403889195,1769633437555,-67429.44359156,0.00021873,2]
[403889196,1769633437566,-2386.59999998,0.00021873,2]
[403889197,1769633437577,-6093.96534532,0.00021873,2]
[403889198,1769633437597,-1671.61534992,0.00021873,2]
[403889391,1769633439665,-151.0,0.00016375,2]
[403889393,1769633439675,-645.04788305,0.00021873,2]
[403889395,1769633439686,-4257.78598744,0.00021873,2]
[403889397,1769633439697,-262668.63345796,0.00021873,2]
[403889399,1769633439707,-826.28059818,0.00021873,2]
[403889403,1769633439733,-40700.15900807,0.00021873,2]
[403889405,1769633439743,-684.16545354,0.00021873,2]
[403889407,1769633439754,-970.14819962,0.00021873,2]
[403889422,1769633439884,-2220.78478323,0.00021873,2]
[403889435,1769633439993,-498.56809228,0.00021873,2]
[403889437,1769633440004,-6913.50557726,0.00021873,2]
[403889613,1769633442603,-2891.81037228,0.00021873,2]
[403889616,1769633442677,-1269.88545203,0.00021873,2]
[403889617,1769633442717,-8407.97136978,0.00021873,2]
[403889618,1769633442882,-1107.14984301,0.00021873,2]
[403889631,1769633445554,-3548.68314574,0.00021873,2]
[403889632,1769633445611,-343.53915486,0.00021873,2]
[403889633,1769633445828,-523.49586585,0.00021873,2]
[403889634,1769633445840,-416.30793719,0.00021873,2]
[403889635,1769633445851,-1374.73080334,0.00021873,2]
[403889636,1769633445890,-2298.54939101,0.00021873,2]
[403889637,1769633445901,-3542.2401443,0.00021873,2]
[403889642,1769634414148,-167.69983271,0.00016935,2]
[403889643,1769634446120,-151.0,0.00016804,2]
[403889644,1769634446144,-7.07016729,0.00016935,2]
[403889645,1769634446165,-514.0,0.00018,2]
[403889646,1769634446185,-300.0,0.00018628,2]
[403889647,1769634446206,-195.0,0.00018628,2]
[403889648,1769634446226,-150.00943829,0.00018628,4]
[403889649,1769634446247,-500.0,0.00018904,2]
[403889650,1769634446270,-1500.0,0.000197,2]
[403889651,1769634446290,-500.0,0.00019863,2]
[403889652,1769634446314,-150.00943829,0.00019882,8]
[403889653,1769634446337,-300.0,0.00020798,2]
[403889654,1769634446358,-16197.82,0.00020799,2]
[403889655,1769634446379,-324.51,0.00020807,2]
[403889656,1769634446400,-1000.0,0.00020988,2]
[403889657,1769634446423,-346.0,0.00021,5]
[403889658,1769634446445,-150.00943829,0.00021136,12]
[403889659,1769634446465,-159.04594922,0.00021181,2]
[403889660,1769634446487,-1200.0,0.00021672,2]
[403889661,1769634446507,-32761.53171026,0.00021673,2]
[403889663,1769634631575,-151.0,0.00017808,2]
[403889664,1769634631584,-151.0,0.00017824,2]
[403889665,1769634631593,-20.43061325,0.00017947,2]
[403889666,1769634631605,-130.56938675,0.00017947,2]
[403889667,1769634631615,-150.01818079,0.00017978,2]
[403889668,1769634631624,-150.01818079,0.00021074,12]
[403889669,1769634631634,-500.0,0.00021093,2]
[403889670,1769634631643,-1876.03732339,0.00021093,2]
[403889671,1769634631671,-32.92267661,0.00021093,2]
[403889672,1769634631681,-159.04594923,0.00021198,2]
[403889673,1769634631691,-180.86708974,0.00021673,2]
[403889674,1769634631700,-300.0,0.00021674,2]
[403889675,1769634631710,-167.0,0.00021674,2]
[403889676,1769634631719,-32.14454024,0.00021675,2]
[403889677,1769634631730,-824.45059083,0.00021675,2]
[403889678,1769634631741,-808.01349314,0.00021675,2]
[403889679,1769634631752,-837.98650686,0.00021675,2]
[403889680,1769634631792,-524.45373049,0.00021675,2]
[403889681,1769634631804,-565.63338473,0.00021675,2]
[403889682,1769634631814,-333.27596216,0.00021675,2]
[403889683,1769634631825,-432.72091993,0.00021675,2]
[403889684,1769634631835,-151.0,0.0002177,2]
[403889685,1769634631845,-219.14155251,0.00021772,2]
[403889686,1769634631854,-66.9729674,0.00021772,2]
[403889688,1769634631866,-433.0270326,0.00021772,2]
[403889690,1769634631876,-500.0,0.00021772,2]
[403889692,1769634631886,-238.24991593,0.00021772,2]
[403889694,1769634631895,-500.0,0.00021772,2]
[403889695,1769634631905,-500.0,0.00021772,2]
[403889696,1769634631914,-500.0,0.00021772,2]
[403889697,1769634631923,-500.0,0.00021772,2]
[403889698,1769634631933,-537.9533771,0.00021772,2]
[403889699,1769634631943,-500.0,0.00021772,2]
[403889700,1769634631953,-1000.0,0.00021773,2]
[403889701,1769634631963,-97483.08585575,0.00021773,2]
[403889702,1769634631989,-267.06128285,0.00021773,2]
[403889703,1769634632005,-598.56,0.00021773,2]
[403889704,1769634632016,-5139.61447808,0.00021773,2]
[403889705,1769634632056,-6420.0,0.00021773,2]
[403889707,1769634637829,-159.04594923,0.00021198,2]
[403889708,1769634637838,-32983.24540616,0.00021773,2]
[403889709,1769634637850,-7495.93213596,0.00021773,2]
[403889710,1769634637862,-1550.56786155,0.00021773,2]
[403889711,1769634637872,-871.59133588,0.00021773,2]
[403889714,1769634637902,-431.69598331,0.00021773,2]
[403889715,1769634637914,-1157.83394336,0.00021773,2]
[403889716,1769634637937,-1323.45921772,0.00021773,2]
[403889717,1769634637948,-32846.53666918,0.00021773,2]
[403889720,1769634637959,-1164.20361154,0.00021773,2]
[403889722,1769634637970,-999.8506,0.00021773,2]
[403889724,1769634637982,-1000.51193,0.00021773,2]
[403889732,1769634638059,-9225.04583948,0.00021773,2]
[403889735,1769634638078,-433.34,0.00021773,2]
[403889904,1769634639673,-1221.1636,0.00021773,2]
[403889914,1769634639732,-712.59793714,0.00021773,2]
[403889933,1769634639893,-889.635,0.00021773,2]
[403889934,1769634639950,-266.802,0.00021773,2]
[403889942,1769634640061,-2910.21835125,0.00021773,2]
[403890105,1769634643270,-151.0,0.00017925,2]
[403890106,1769634643279,-264378.12436079,0.00021773,2]
[403890107,1769634643288,-1000.0,0.00021775,2]
[403890108,1769634643298,-500.0,0.00021817,2]
[403890109,1769634643307,-500.0,0.00021817,2]
[403890110,1769634643315,-500.0,0.00021817,2]
[403890111,1769634643324,-500.0,0.00021817,2]
[403890112,1769634643333,-20493.6280354,0.00021865,2]
[403890113,1769634643343,-8545.0271606,0.00021866,2]
[403890114,1769634643353,-500.0,0.00021872,2]
[403890116,1769634643361,-500.0,0.00021872,2]
[403890117,1769634643370,-500.0,0.00021872,2]
[403890119,1769634643379,-500.0,0.00021872,2]
[403890120,1769634643387,-500.0,0.00021872,2]
[403890121,1769634643397,-500.0,0.00021872,2]
[403890122,1769634643405,-500.0,0.00021872,2]
[403890123,1769634643414,-500.0,0.00021872,2]
[403890124,1769634643423,-504.38275223,0.00021872,2]
[403890125,1769634643433,-500.0,0.00021872,2]
[403890126,1769634643442,-500.0,0.00021872,2]
[403890127,1769634643451,-500.0,0.00021872,2]
[403890128,1769634643460,-500.0,0.00021872,2]
[403890129,1769634643470,-316.29,0.00021872,2]
[403890130,1769634643478,-316.57133444,0.00021873,2]
[403890131,1769634643487,-151.0,0.00021873,2]
[403890132,1769634643496,-361.37388775,0.00021873,2]
[403890133,1769634643505,-200.0,0.00021873,2]
[403890134,1769634643514,-1000.0,0.00021873,2]
[403890135,1769634643523,-1000.0,0.00021873,2]
[403890136,1769634643531,-977.16126562,0.00021873,2]
[403890137,1769634643540,-200.0,0.00021873,2]
[403890138,1769634643549,-5000.0,0.00021918,2]
[403890139,1769634643559,-12520.94,0.00021939,2]
[403890140,1769634643568,-500.0,0.00021973,2]
[403890141,1769634643577,-500.0,0.00021973,2]
[403890142,1769634643586,-500.0,0.00021973,2]
[403890143,1769634643595,-500.0,0.00021973,2]
[403890144,1769634643604,-242.69743657,0.00021973,2]
[403890145,1769634643613,-500.0,0.00021973,2]
[403890146,1769634643622,-500.0,0.00021973,2]
[403890147,1769634643630,-500.0,0.00021973,2]
[403890148,1769634643639,-500.0,0.00021973,2]
[403890149,1769634643649,-500.0,0.00021973,2]
[403890150,1769634643658,-500.0,0.00021973,2]
[403890151,1769634643668,-500.0,0.00021973,2]
[403890152,1769634643677,-584.53861149,0.00021973,2]
[403890153,1769634643686,-500.0,0.00021973,2]
[403890154,1769634643695,-198.8665229,0.00021973,2]
[403890155,1769634643705,-500.92344922,0.00021973,2]
[403890156,1769634643714,-500.0,0.00021973,2]
[403890157,1769634643723,-500.0,0.00021973,2]
[403890158,1769634643732,-500.5347476,0.00021973,2]
[403890159,1769634643742,-500.0,0.00021973,2]
[403890160,1769634643751,-483.90534832,0.00021973,2]
[403890161,1769634643761,-500.0,0.00021973,2]
[403890162,1769634643771,-500.0,0.00021973,2]
[403890163,1769634643780,-184.87441508,0.00021973,2]
[403890164,1769634643789,-263.52942458,0.00021973,2]
[403890165,1769634643799,-500.0,0.00021973,2]
[403890166,1769634643808,-500.71345876,0.00021973,2]
[403890167,1769634643817,-200.0,0.00022092,2]
[403890168,1769634643826,-200.0,0.00022092,2]
[403890169,1769634643836,-11782.54,0.00022105,2]
[403890170,1769634643845,-316.29,0.00022146,2]
[403890171,1769634643855,-758.32,0.00022176,2]
[403890172,1769634643864,-538.99256756,0.00022238,2]
[403890173,1769634643875,-487.62,0.00022263,2]
[403890174,1769634643884,-200.0,0.00022313,2]
[403890175,1769634643894,-200.0,0.00022313,2]
[403890176,1769634643903,-13661.9485079,0.0002237,2]
[403890177,1769634643915,-316.29,0.0002242,2]
[403890178,1769634643923,-200.0,0.00022421,2]
[403890179,1769634643932,-200.0,0.00022421,2]
[403890180,1769634643942,-200.3059212,0.00022521,2]
[403890181,1769634643951,-500.62809679,0.00022521,2]
[403890182,1769634643960,-200.0,0.00022536,2]
[403890183,1769634643971,-200.0,0.00022536,2]
[403890184,1769634643981,-487.62,0.00022537,2]
[403890185,1769634643994,-500.0,0.00022552,2]
[403890186,1769634644004,-7989.04925228,0.00022552,2]
[403890187,1769634644013,-1000.0,0.00022562,2]
[403890188,1769634644024,-18143.64,0.00022562,2]
[403890189,1769634644035,-216.75260752,0.000226,2]
[403890190,1769634644046,-200.0,0.00022645,2]
[403890191,1769634644056,-200.0,0.00022645,2]
[403890192,1769634644065,-316.29,0.00022694,2]
[403890193,1769634644074,-200.0,0.00022761,2]
[403890194,1769634644084,-200.0,0.00022761,2]
[403890195,1769634644093,-1000.0,0.00022795,2]
[403890196,1769634644102,-218.28,0.00022811,2]
[403890197,1769634644258,-1084.71,0.00022819,2]
[403890198,1769634644269,-200.0,0.00022872,2]
[403890199,1769634644280,-200.0,0.00022872,2]
[403890200,1769634644291,-166.66,0.00022937,30]
[403890201,1769634644299,-434.36904423,0.00022954,2]
[403890202,1769634644311,-500.0,0.00022954,2]
[403890203,1769634644322,-316.31,0.00022968,2]
[403890204,1769634644332,-500.0,0.00022973,2]
[403890205,1769634644341,-150.0,0.00022973,2]
[403890206,1769634644351,-150.0,0.00022973,2]
[403890207,1769634644360,-200.0,0.000231,2]
[403890208,1769634644370,-200.0,0.000231,2]
[403890209,1769634644382,-150.0,0.00023145,2]
[403890210,1769634644391,-150.0,0.00023145,2]
[403890211,1769634644400,-150.0,0.00023308,2]
[403890212,1769634644409,-200.0,0.00023331,2]
[403890213,1769634644418,-200.0,0.00023331,2]
[403890214,1769634644427,-1000.0,0.00023349,2]
[403890215,1769634644436,-172.74,0.00023364,2]
[403890216,1769634644446,-166.66,0.00023419,30]
[403890217,1769634644455,-300.0,0.00023521,2]
[403890218,1769634644464,-300.0,0.00023521,2]
[403890219,1769634644474,-758.32,0.00023546,2]
[403890220,1769634644484,-420.0,0.0002356,2]
[403890221,1769634644493,-179.30657264,0.00023826,2]
[403890222,1769634644502,-183.1134535,0.00023826,2]
[403890223,1769634644516,-1084.71,0.00023857,2]
[403890224,1769634644526,-166.66,0.00023902,30]
[403890225,1769634644536,-3592.68224625,0.00024065,2]
[403890226,1769634644546,-150.26267219,0.00024068,2]
[403890227,1769634644555,-578.20924308,0.00024074,2]
[403890228,1769634644564,-359.76179104,0.00024074,2]
[403890229,1769634644573,-3000.0,0.00024074,2]
[403890230,1769634644583,-2000.0,0.00024074,2]
[403890231,1769634644592,-3000.0,0.00024074,2]
[403890232,1769634644602,-2000.0,0.00024074,2]
[403890233,1769634644611,-3000.0,0.00024074,2]
[403890234,1769634644621,-2000.0,0.00024074,2]
[403890235,1769634644630,-204.0925976,0.00024074,2]
[403890236,1769634644641,-2000.0,0.00024074,2]
[403890237,1769634644650,-209.40437684,0.00024074,2]
[403890238,1769634644659,-2000.0,0.00024074,2]
[403890239,1769634644669,-174.61919141,0.00024074,2]
[403890240,1769634644679,-2000.0,0.00024074,2]
[403890241,1769634644688,-1062.37461804,0.00024074,2]
[403890242,1769634644697,-500.0,0.00024074,2]
[403890243,1769634644707,-500.0,0.00024074,2]
[403890244,1769634644716,-500.0,0.00024074,2]
[403890245,1769634644725,-500.0,0.00024074,2]
[403890246,1769634644734,-500.0,0.00024074,2]
[403890247,1769634644743,-151.0,0.00024074,2]
[403890248,1769634644753,-154.30902602,0.00024074,2]
[403890249,1769634644762,-322.6107,0.00024074,2]
[403890250,1769634644771,-854.2589148,0.00024074,2]
[403890251,1769634644780,-500.0,0.00024074,2]
[403890252,1769634644790,-500.0,0.00024074,2]
[403890253,1769634644799,-500.0,0.00024074,2]
[403890254,1769634644808,-500.0,0.00024074,2]
[403890255,1769634644817,-500.0,0.00024074,2]
[403890256,1769634644826,-500.0,0.00024074,2]
[403890257,1769634644835,-500.0,0.00024074,2]
[403890258,1769634644844,-500.0,0.00024074,2]
[403890259,1769634644853,-500.0,0.00024074,2]
[403890260,1769634644862,-500.0,0.00024074,2]
[403890261,1769634644871,-500.0,0.00024074,2]
[403890262,1769634644881,-500.0,0.00024074,2]
[403890263,1769634644890,-500.0,0.00024074,2]
[403890264,1769634644899,-500.0,0.00024074,2]
[403890265,1769634644908,-500.0,0.00024074,2]
[403890266,1769634644918,-314.35815498,0.00024074,2]
[403890267,1769634644927,-300.57916316,0.00024074,2]
[403890268,1769634644936,-2495.12,0.00024088,2]
[403890269,1769634644945,-217.15233878,0.00024129,2]
[403890270,1769634644954,-1000.0,0.00024136,2]
[403890271,1769634644964,-150.01818079,0.0002417,22]
[403890272,1769634644973,-225.18697532,0.00024184,2]
[403890273,1769634644983,-2000.0,0.00024233,30]
[403890274,1769634644995,-1500.0,0.00024233,30]
[403890275,1769634645004,-1500.0,0.00024233,30]
[403890276,1769634645013,-1500.0,0.00024233,30]
[403890277,1769634645022,-1500.0,0.00024233,30]
[403890278,1769634645033,-838.71,0.00024238,2]
[403890279,1769634645042,-233.51889341,0.00024239,2]
[403890280,1769634645052,-242.15909246,0.00024294,2]
[403890281,1769634645063,-251.11897888,0.00024349,2]
[403890282,1769634645072,-166.66,0.00024385,30]
[403890283,1769634645081,-260.4103811,0.00024404,2]
[403890284,1769634645091,-270.0455652,0.00024459,2]
[403890285,1769634645099,-280.03725112,0.00024514,2]
[403890286,1769634645108,-8545.0271606,0.00024525,2]
[403890287,1769634645118,-172.74,0.00024532,2]
[403890288,1769634645127,-290.39862941,0.00024569,2]
[403890289,1769634645136,-373.07297731,0.00024622,2]
[403890290,1769634645145,-181.08010149,0.00024622,2]
[403890291,1769634645154,-230.16041742,0.00024622,2]
[403890292,1769634645163,-885.86649465,0.00024622,2]
[403890293,1769634645173,-301.1433787,0.00024624,2]
[403890294,1769634645182,-181.44842283,0.0002463,2]
[403890295,1769634645191,-1000.0,0.00024658,2]
[403890296,1769634645200,-166.66,0.00024868,30]
[403890297,1769634645210,-150.0,0.00024873,2]
[403890298,1769634645219,-1084.71,0.00024894,2]
[403890299,1769634645228,-386.87667747,0.0002517,2]
[403890300,1769634645238,-187.78006525,0.0002517,2]
[403890301,1769634645247,-918.64355495,0.0002517,2]
[403890302,1769634645256,-3048.3927585,0.0002526,2]
[403890303,1769634645265,-1000.0,0.00025328,2]
[403890304,1769634645274,-166.66,0.00025351,30]
[403890305,1769634645284,-250.0,0.00025421,2]
[403890306,1769634645295,-405.81978694,0.00025443,2]
[403890307,1769634645305,-587.0,0.00025611,2]
[403890308,1769634645314,-172.74,0.000257,2]
[403890309,1769634645323,-328.15655843,0.00025718,2]
[403890310,1769634645333,-194.72792766,0.00025718,2]
[403890311,1769634645343,-500.0,0.00025808,2]
[403890312,1769634645353,-500.0,0.0002589,2]
[403890313,1769634645362,-680.1883644,0.00025905,2]
[403890314,1769634645370,-400.0,0.00025968,2]
[403890315,1769634645381,-4572.7465055,0.00025977,2]
[403890316,1769634645390,-176.04863703,0.00026266,2]
[403890317,1769634645399,-3592.68224625,0.00026455,2]